Cogmind - Beta 10.2 @@@ ROGUE MODE // 2021.02.27 @ 18:14:25 Player: Cookedpoo Result: Destroyed by G-34 Mercenary with Small Laser Performance ------------- Evolutions (0) 0 Regions Visited (4) 800 Robots Destroyed (28) 140 Value Destroyed (548) 548 Prototype IDs (26) 520 Alien Tech Used (0) 0 Bonus (300) 300 TOTAL SCORE: 2308 Bonus ------- Aligned with FarCom 300 Cogmind --------- Core Integrity 0/250 Matter 280/300 Energy 250/250 System Corruption 0% Temperature Cool (7) Movement Treading (220) Ox3 Location -9/Mines Parts ------- > --- POWER (1) -------- Ion Engine > --- PROPULSION (2) --- Light Treads Compact Wheel > --- UTILITY (2) ------ High-capacity Storage Unit High-capacity Storage Unit > --- WEAPON (2) ------- EM Shotgun Mini Grenade Launcher > --- INVENTORY (20) --- Light Deuterium Engine Light Treads Light Treads Light Treads Advanced Treads Compact Wheel Compact Wheel Cooling System Large Storage Unit Large Storage Unit Large Storage Unit Large Storage Unit High-capacity Battery (400) Advanced Signal Interpreter Improved Targeting Computer Improved Targeting Computer Supersonic Drone Bay (1/1) EM Pulse Gun EM Shotgun Grenade Launcher Peak State ------------ > --- POWER ------------ Ion Engine > --- PROPULSION ------- Light Treads Wheel > --- UTILITY ---------- High-capacity Storage Unit Supersonic Drone Bay > --- WEAPON ----------- EM Shotgun EM Shotgun > --- INVENTORY -------- Light Deuterium Engine Light Treads Compact Wheel Compact Wheel Large Storage Unit Large Storage Unit Large Storage Unit High-capacity Battery Advanced Signal Interpreter Improved Targeting Computer Improved Targeting Computer EM Pulse Gun [Rating: 17] Favorites ----------- Power Ion Engine Engine Ion Engine Propulsion Light Treads Treads Light Treads Wheel Wheel Utility Large Storage Unit Device Shield Generator Storage Large Storage Unit Processor Improved Targeting Computer Weapon EM Shotgun Energy Gun EM Shotgun Launcher Grenade Launcher Build | -11 -10 -10 -10 -9 ------- Run | Scr Mat Min Exi Min Slots Evolved . | . . . . . Power . | . . . . . Propulsion . | . . . . . Utility . | . . . . . Weapon . | . . . . . Parts Attached 29 | 6 12 5 5 1 Power 2 | 1 1 . . . Engine 2 | 1 1 . . . Core . | . . . . . Reactor . | . . . . . Propulsion 7 | 2 1 3 1 . Treads 4 | 1 1 2 . . Leg . | . . . . . Wheel 3 | 1 . 1 1 . Hover . | . . . . . Flight . | . . . . . Utility 9 | 1 4 . 4 . Device 2 | . 1 . 1 . Storage 6 | 1 2 . 3 . Processor 1 | . 1 . . . Hackware . | . . . . . Protection . | . . . . . Artifact . | . . . . . Weapon 11 | 2 6 2 . 1 Energy Gun 9 | 2 5 2 . . Energy Cannon . | . . . . . Ballistic Gun . | . . . . . Ballistic Cannon . | . . . . . Launcher 2 | . 1 . . 1 Special Weapon . | . . . . . Impact Weapon . | . . . . . Slashing Weapon . | . . . . . Piercing Weapon . | . . . . . Special Melee Weapon . | . . . . . Unidentified Prototypes . | . . . . . Parts Lost 4 | . 1 3 . . Power . | . . . . . Propulsion 1 | . . 1 . . Utility 1 | . 1 . . . Weapon 2 | . . 2 . . Highest Loss Streak 2 | . 1 2 . . Average Slot Usage (%) 99 | . 99 99 99 100 Engine 14 | . 14 14 14 14 Treads 14 | . 14 14 14 14 Wheel 13 | . 14 13 14 14 Device 1 | . 7 . . . Storage 25 | . 19 28 27 28 Energy Gun 27 | . 27 28 28 26 Naked Turns . | . . . . . Heaviest Build 75 | 9 43 43 75 75 Greatest Support 40 | 20 20 40 16 16 Greatest Overweight (x) 14 | . 4 14 7 4 Average Overweight (x) 4 | . 2 5 5 4 Largest Inventory Capacity 20 | 6 16 16 20 20 Average Capacity 15 | 5 10 16 18 20 Most Carried 20 | 4 16 16 20 20 Average Carried 13 | 2 9 13 18 19 Final Capacity 20 | 6 16 16 20 20 Final Carried 20 | 4 16 16 20 20 Class Distribution -------------------- 85% | Mutant 14% | Hauler-Mutant Dominant Class ---------------- Mutant | -10/Materials Mutant | -10/Mines Hauler-Mutant | -10/Exiles Hauler-Mutant | -9/Mines Resources | -11 -10 -10 -10 -9 ----------- Run | Scr Mat Min Exi Min Matter Collected 500 | 260 145 45 20 30 Remotely . | . . . . . Salvage Created 1040 | 81 856 71 . 32 Parts 46 | 1 43 1 . 1 Haulers Intercepted 2 | . 2 . . . Recyclers Shooed . | . . . . . Parts Field Recycled . | . . . . . Retrieved Matter . | . . . . . Parts Self-Destructed . | . . . . . Prevented . | . . . . . Kills | -11 -10 -10 -10 -9 ------- Run | Scr Mat Min Exi Min Combat Hostiles Destroyed 18 | . 15 2 . 1 Guns 10 | . 9 1 . . AOE 6 | . 5 . . 1 Classes Destroyed 7 | 1 6 . . . Worker 1 | . 1 . . . Hauler 2 | . 2 . . . Recycler 4 | 1 3 . . . Operator 1 | . 1 . . . Watcher 2 | . 2 . . . Swarmer 6 | . 6 . . . Grunt 11 | . 9 1 . 1 Best Kill Streak 7 | 1 7 1 . 1 Combat Bots Only 6 | . 6 1 . 1 Max Kills in Single Turn 3 | 1 3 1 . 1 Gunslinging . | . . . . . Exploded 3 | . 3 . . 1 Melee . | . . . . . Uniques/NPCs Destroyed 1 | . . 1 . . YI-UF0 (-10/Mines) Combat | -11 -10 -10 -10 -9 -------- Run | Scr Mat Min Exi Min Damage Taken 890 | . 356 501 . 33 Core 250 | . 52 176 . 22 Absorbed by Shields 88 | . 88 . . . Core Remaining (%) 100 | 100 . . . . Volleys Fired 66 | 3 51 11 . 1 Largest 2 | 2 2 2 . 1 Hottest 90 | 80 90 90 . 30 Shots Fired 123 | 6 94 22 . 1 Gun 119 | 6 91 22 . . Cannon . | . . . . . Launcher 4 | . 3 . . 1 Special . | . . . . . Kinetic . | . . . . . Thermal 58 | 6 52 . . . Explosive 4 | . 3 . . 1 Electromagnetic 61 | . 39 22 . . Robot Hit Streak 23 | 6 23 6 . . Robot Miss Streak 4 | . 4 2 . 1 Penetration Max . | . . . . . Secondary Targets . | . . . . . Shots Hit Robots 93 | 6 68 19 . . Core Hits 52 | 2 39 8 . 3 Critical Hits . | . . . . . Critical Kills . | . . . . . Critical Parts Destroyed . | . . . . . Melee Attacks . | . . . . . Impact . | . . . . . Slashing . | . . . . . Piercing . | . . . . . Sneak Attacks . | . . . . . Combat Hostiles . | . . . . . Follow-up Attacks . | . . . . . Damage Inflicted 1656 | 69 1131 338 . 118 Guns 1119 | 69 794 256 . . Cannons . | . . . . . Explosions 537 | . 337 82 . 118 Melee . | . . . . . Ramming . | . . . . . Kinetic . | . . . . . Thermal 548 | 69 397 82 . . Explosive 417 | . 299 . . 118 Electromagnetic 691 | . 435 256 . . Impact . | . . . . . Slashing . | . . . . . Piercing . | . . . . . Highest Corruption . | . . . . . Average Corruption . | . . . . . Corruption Purged . | . . . . . Overload Shots . | . . . . . Overflow Damage 40 | . 8 32 . . Projectiles . | . . . . . Explosions 40 | . 8 32 . . Melee . | . . . . . Knockbacks . | . . . . . Impact . | . . . . . Kinetic . | . . . . . Secondary . | . . . . . Self-Inflicted Damage 54 | . . 54 . . Shots 1 | . . 1 . . Rammed . | . . . . . Targets Rammed . | . . . . . Kicked . | . . . . . Crushed . | . . . . . Highest Temperature 271 | 54 252 271 . 1 Average Temperature 80 | 28 71 120 . 1 Received Heat Transfer 281 | . 164 99 . 18 Effects 1 | . 1 . . . Energy Bleed 1 | . 1 . . . Siege Activations . | . . . . . Robots Corrupted 2 | . 1 1 . . Combat Hostiles 2 | . 1 1 . . Parts Fried 3 | . 2 1 . . Impact Corruptions . | . . . . . Robots Melted . | . . . . . Combat Hostiles . | . . . . . Parts Melted 1 | 1 . . . . Heat Transferred 1100 | 150 850 100 . . Parts Sabotaged . | . . . . . Parts Stolen . | . . . . . Parts Stripped . | . . . . . Power Chain Reactions 2 | . 1 1 . . Missiles Intercepted . | . . . . . Alert | -11 -10 -10 -10 -9 ------- Run | Scr Mat Min Exi Min Peak Influence 416 | 5 416 121 . 33 Initial 111 | . 3 111 . . Average 93 | 1 261 21 . 12 Maximum Alert Level 2 | . 2 . . . Low Security (%) 74 | 100 16 100 . 100 Level 1 20 | . 67 . . . Level 2 4 | . 15 . . . Level 3 . | . . . . . Level 4 . | . . . . . Level 5 . | . . . . . High Security . | . . . . . Max Security . | . . . . . Squads Dispatched 5 | . 4 . . 1 Investigation 3 | . 2 . . 1 Extermination . | . . . . . Reinforcement 2 | . 2 . . . Assault . | . . . . . Garrison . | . . . . . Intercept . | . . . . . Construction Impeded . | . . . . . Haulers Reinforced . | . . . . . Stealth | -11 -10 -10 -10 -9 --------- Run | Scr Mat Min Exi Min Distress Signals 2 | . 2 . . . Communications Jammed . | . . . . . Distress Signals . | . . . . . Times Spotted 32 | . 26 3 . 3 Peak Tracking Total 9 | . 9 2 . 3 Tactical Retreats 1 | . 1 . . . Traps | -11 -10 -10 -10 -9 ------- Run | Scr Mat Min Exi Min Traps Triggered . | . . . . . Indirectly . | . . . . . Trap Hack Attempts . | . . . . . Triggered . | . . . . . Disarmed . | . . . . . Reprogrammed . | . . . . . Reused . | . . . . . Traps Extracted . | . . . . . Installed . | . . . . . Triggered . | . . . . . Machines | -11 -10 -10 -10 -9 ---------- Run | Scr Mat Min Exi Min Machines Disabled 1 | . 1 . . . Max in Single Turn 1 | . 1 . . . Machines Sabotaged . | . . . . . Garrisons Compromised . | . . . . . Overloaded Fab Kills . | . . . . . Fab Network Shutdowns . | . . . . . Hacking | -11 -10 -10 -10 -9 --------- Run | Scr Mat Min Exi Min Machines Accessed 11 | . 7 1 2 1 Terminals 6 | . 5 . . 1 Fabricators . | . . . . . Repair Stations . | . . . . . Recycling Units 2 | . 2 . . . Scanalyzers . | . . . . . Garrison Access . | . . . . . Total Hacks 30 | . 23 1 2 4 Successful 18 | . 13 1 2 2 Failed 12 | . 10 . . 2 Catastrophic 4 | . 3 . . 1 Database Lockouts . | . . . . . Manual 23 | . 18 . 1 4 Terminals 22 | . 18 . . 4 Fabricators . | . . . . . Repair Stations . | . . . . . Recycling Units 5 | . 5 . . . Scanalyzers . | . . . . . Garrison Access . | . . . . . Terminal Hacks 14 | . 9 1 2 2 Record 1 | . . . 1 . Part Schematic 4 | . 3 . . 1 Robot Analysis 3 | . 2 . . 1 Prototype ID Bank 2 | . 2 . . . Open Door 1 | . . 1 . . Unreport Threat 1 | . 1 . . . Hauler Manifests 1 | . 1 . . . EX-Prototype ID Bank 1 | . . . 1 . Fabricator Hacks . | . . . . . Repair Station Hacks . | . . . . . Recycling Unit Hacks 1 | . 1 . . . Retrieve Components 1 | . 1 . . . Scanalyzer . | . . . . . Garrison Access Hacks . | . . . . . Unauthorized Hacks 3 | . 3 . . . Terminals 1 | . 1 . . . Track 1 | . 1 . . . Fabricators . | . . . . . Repair Stations . | . . . . . Recycling Units 2 | . 2 . . . Tunnel 2 | . 2 . . . Scanalyzers . | . . . . . Garrison Access . | . . . . . Data Cores Recovered . | . . . . . Used . | . . . . . Hacking Detections 7 | . 6 . . 1 Full Trace Events 1 | . . . . 1 Feedback Events . | . . . . . Feedback Blocked . | . . . . . Robot Schematics Acquired . | . . . . . Robots Built . | . . . . . Matter . | . . . . . Time . | . . . . . Total Robot Build Rating . | . . . . . Part Schematics Acquired 4 | . 3 . . 1 Parts Built . | . . . . . Matter . | . . . . . Time . | . . . . . Total Part Build Rating . | . . . . . Parts Repaired . | . . . . . Time . | . . . . . Parts Recycled . | . . . . . Recycled Matter . | . . . . . Retrieved Matter . | . . . . . Retrieved Components 9 | . 9 . . . Parts Scanalyzed . | . . . . . Part Schematics Acquired . | . . . . . Parts Damaged . | . . . . . Bothacking | -11 -10 -10 -10 -9 ------------ Run | Scr Mat Min Exi Min Used RIF Installer . | . . . . . Robots Hacked . | . . . . . Non-combat . | . . . . . Combat . | . . . . . Robot Hacks Applied . | . . . . . Relay Couplers Released . | . . . . . Robots Rewired . | . . . . . Allies Hacked . | . . . . . Hacks Repelled . | . . . . . Allies | -11 -10 -10 -10 -9 -------- Run | Scr Mat Min Exi Min Total Allies 1 | . . 1 . . Largest Group 1 | . . 1 . . Highest-Rated Group 31 | . . 31 . . Highest-Rated Ally 31 | . . 31 . . Total Orders 2 | . . . 2 . EXPLORE 1 | . . . 1 . RETURN 1 | . . . 1 . Ally Attacks . | . . . . . Total Damage . | . . . . . Kills . | . . . . . Allies Corrupted . | . . . . . Allies Melted . | . . . . . Intel | -11 -10 -10 -10 -9 ------- Run | Scr Mat Min Exi Min Robot Analysis Total 3 | . 2 . . 1 Derelict Logs Recovered 1 | . . 1 . . Drone Launches 1 | . . . 1 . Drone Recoveries 1 | . . . 1 . Exploration | -11 -10 -10 -10 -9 ------------- Run | Scr Mat Min Exi Min Turns Passed 3841 | 55 978 2102 605 101 Spaces Moved 1941 | 38 706 715 420 62 Core 122 | 1 . 121 . . Treads 79 | 2 1 76 . . Legs . | . . . . . Wheels 1740 | 35 705 518 420 62 Hover . | . . . . . Flight . | . . . . . Fastest Speed 50 | 50 80 120 120 140 Average Speed 159 | 83 102 234 138 140 Slowest Speed 750 | 160 160 750 150 140 Overloaded Moves . | . . . . . Propulsion Burnouts . | . . . . . Robots Hopped . | . . . . . Cave-ins Triggered . | . . . . . Exploration Rate (%) 55 | 3 91 99 71 13 Regions Visited 4 Branch Regions 3 Pre-discovered Areas 3 | . 2 . 1 . Known Exits Taken . | . . . . . Unknown Exits Taken 4 | 1 1 1 1 . Scrap Searched 1 | . . . . 1 Spaces Dug . | . . . . . Terrain Destroyed 29 | . 18 4 . 7 Melee . | . . . . . Projectile . | . . . . . AOE 29 | . 18 4 . 7 Terrain Rammed . | . . . . . Walls Destroyed . | . . . . . Machines Disabled . | . . . . . Actions | -11 -10 -10 -10 -9 --------- Run | Scr Mat Min Exi Min Total 2558 | 52 867 1114 449 76 Wait 467 | 2 69 381 5 10 Move 1937 | 37 705 714 419 62 Hop . | . . . . . Pick Up 42 | 4 20 3 14 1 Fast Attach 10 | 6 2 . 2 . Attach 5 | . 2 3 . . Detach 1 | . 1 . . . Swap 14 | . 8 2 3 1 Drop 16 | . 9 . 6 1 Fire 66 | 3 51 11 . 1 Melee . | . . . . . Ram . | . . . . . Kick . | . . . . . Crush . | . . . . . Escape Stasis . | . . . . . Rewire . | . . . . . Trap . | . . . . . Miscellaneous . | . . . . . Route ------- -11/Scrapyard -10/Materials (discovered 5 exits: [*Mat x3] / *Min x2) -10/Mines (discovered 3 exits: [*Mat x2] / *Exi) -10/Exiles -9/Mines History --------- Turn | Location | Event 32 | -11/Scrapyard | Discovered new exit (range 16) 56 | -11/Scrapyard | Entered Materials 233 | -10/Materials | Discovered new exit (range 12) 303 | -10/Materials | Build established: Mutant 383 | -10/Materials | Discovered new exit (range 16) 406 | -10/Materials | Discovered new exit (range 16) 486 | -10/Materials | Discovered new exit (range 16) 689 | -10/Materials | Discovered new exit (range 3) 1034 | -10/Materials | Entered Mines 1058 | -10/Mines | Learned Materials garrison access intel 1213 | -10/Mines | Core integrity fell below 50% 1221 | -10/Mines | Destroyed YI-UF0 1221 | -10/Mines | Core integrity fell below 20% 1260 | -10/Mines | Discovered new exit (range 13) 1362 | -10/Mines | Deemed a non-threat by the Exiles lab entrance 1426 | -10/Mines | Discovered new exit (range 13) 1440 | -10/Mines | Received a Mining Laser from a helpful Derelict 1626 | -10/Mines | Met a Derelict who couldn't figure out how to use a Trap Extractor 3130 | -10/Mines | Discovered new exit (range 5) 3136 | -10/Mines | Entered Exiles 3165 | -10/Exiles | Met 8R-AWN 3186 | -10/Exiles | Met EX-HEX 3232 | -10/Exiles | Met EX-DEC 3238 | -10/Exiles | Learned location of Zion (-7) 3502 | -10/Exiles | Met EX-BIN 3520 | -10/Exiles | Aligned with FarCom system 3521 | -10/Exiles | Given EX-Vault access code 3556 | -10/Exiles | Opened EX-Vault 3572 | -10/Exiles | Found Supersonic Drone Bay 3603 | -10/Exiles | Build established: Hauler-Mutant 3640 | -10/Exiles | Warned to stay clear of 0b10 Research branches 3730 | -10/Exiles | Discovered new exit (range 10) 3741 | -10/Exiles | Left Exiles lab with Supersonic Drone Bay 3741 | -10/Exiles | Entered Mines 3842 | -9/Mines | Destroyed by G-34 Mercenary with Small Laser Last Messages --------------- alerted to the presence of one nearby. >>Schematic(Imp. Signal Interpreter) Downloading schematic... Imp. Signal Interpreter Rating: 2 Schematic downloaded. 03744_ ALERT: Suspicious activity at Terminal M001. Dispatching Investigation squad. 03744_ K-01 Serf collects debris. 03754_ Searching scrap... 03754_ Found Heat Sink. 03754_ Found Mni. Grenade Launcher. 03754_ Found 24 Matter. 03755_ Acquired 24 matter. 03755_ Dropped Grenade Launcher. 03757_ Acquired Mni. Grenade Launcher. 03769_ K-01 Serf collects debris. 03770_ Acquired 6 matter. 03776_ K-01 Serf collects debris. 03841_ G-34 Mercenary destroyed. Map ----- +----------------------------------------------------+ | ????????????????????????????????? | | ????????????????????????????????? | | ????????????????????????????????? | | ????????????????????????????????? | | ????????????????????????????????? | | ????????????????????????????????? | | ????????????????????????????????? | | ????????????????????????????????? | | ????????????????????????????????? | | ???????????????????b????????????? | | ????????????????????????????????? | | ????????????????g???????????????? | | ????????????????????????????????? | | ????????????????????????????????? | | ????????????????????????????????? | | ????????????????????????????????? | | ????????????????????????????????? | | ????????????????????????????????? | | ????????????????????????????????? | | ????????????????????????????????? | | ????????????????????????????????? | | ????????????????????????????????? | | ????????????????????????????????? | | ??????#####?????????????????????? | | ?????## ######???######???????? | | ?????# @ [ ##?## ##??????? | | ????## ## ##?????? | | ????# k g #?????? | | ????## %[ [ ##?????? | | ?????##### % g ## ##??????? | | ?????????## ] ## ######??? | | ??????????### ## #??? | | ????????????## ####### #??? | | ?????????????## ####?????# #??? | | ??????????????## #????????# ?? | | ???????????????# #????????# ? | | ???????????????#!#???????? | | ???????????????#]#???????? ### | | ???????????????# #???????? #?? | | ???????????????# #???????? ##?? | | ???????????????# #???????? ##??? | | ???????????????# #????????##????? | | ???????????????# #??????????????? | | ??????????###### ###????????????? | | ??????????# T#????????????? | | ??????????# ##????????????? | | ??????????# #?????????????? | | ??????????# #?????????????? | | ??????????# #?????????????? | | ??????????# #?????????????? | +----------------------------------------------------+ Best States ------------- Heat Dissipation 25 Energy Generation 10 Energy Capacity 250 Matter Stores 300 Matter Capacity 300 Sight Range 16 Terrain Scan Density 10 Evasion (%) 44 Targeting Accuracy 6 Recoil Reduction 2 Item Schematics ----------------- Hcp. Storage Unit | -10/Materials | Hacked Med. Storage Unit | -10/Materials | Hacked Lrg. Storage Unit | -10/Materials | Hacked Imp. Signal Interpreter | -9/Mines | Hacked Robot Schematics ------------------ None Fabricated ------------ Nothing Alien Tech Used ----------------- None Achievements -------------- None Challenges ------------ None Game ------ Seed TrackerRocketStorm Manual? 0 Play Time 00:28:00 Cumulative 106.7 hours Start 2021.02.27 @ 17:40:25 End 2021.02.27 @ 18:14:25 Sessions 1 Manual Loads 0 Difficulty Rogue Special Mode None Game No. 98 Rogue 98 Adventurer 0 Explorer 0 Win Type - Total 2 Types 2/0/0/0/0/0/0/0/0 Lore% 57 Gallery% 59 Achievement% 47 Wizard Run 0 Options --------- ASCII 1 Keyboard 1 Movement Arrows Keybinds 0 Fullscreen 2 Font 18/TerminusBold Map View 76x50 Tactical HUD 1 Map Filters NONE Filters NONE Steam 1 RUN: 61505742-d10e-4621-a2e4-481715ca1dbf